[Event "Late-Titled-Tuesday-Blitz-May-14-2024"]
[Site "Chess.com"]
[Date "2024.05.14"]
[Round "2"]
[White "KorolDimitriy75"]
[Black "Ditman2007"]
[Result "0-1"]
[WhiteElo "2398"]
[BlackElo "2695"]
[TimeControl "180+1"]
[EndTime "14:16:18 PDT"]
[Termination "Ditman2007 won on time"]

1. d4 {[%clk 0:03:00.9]} 1... Nf6 {[%clk 0:02:48.9]} 2. c4 {[%clk 0:03:01.3]}
2... c5 {[%clk 0:02:49.5]} 3. d5 {[%clk 0:03:01]} 3... b5 {[%clk 0:02:50.2]} 4.
Nd2 {[%clk 0:03:00.7]} 4... bxc4 {[%clk 0:02:48.3]} 5. e4 {[%clk 0:03:00.3]}
5... c3 {[%clk 0:02:49]} 6. bxc3 {[%clk 0:03:00.1]} 6... d6 {[%clk 0:02:49.8]}
7. Ngf3 {[%clk 0:02:59.5]} 7... g6 {[%clk 0:02:46.5]} 8. Qc2 {[%clk 0:02:58.9]}
8... Bg7 {[%clk 0:02:46.6]} 9. Rb1 {[%clk 0:02:58.7]} 9... O-O {[%clk
0:02:46.5]} 10. h3 {[%clk 0:02:53]} 10... Qa5 {[%clk 0:02:42.9]} 11. Nc4 {[%clk
0:02:45.5]} 11... Qc7 {[%clk 0:02:42.7]} 12. Bd3 {[%clk 0:02:45.1]} 12... Ba6
{[%clk 0:02:42.1]} 13. O-O {[%clk 0:02:44.3]} 13... Nbd7 {[%clk 0:02:40.9]} 14.
Bf4 {[%clk 0:02:18.9]} 14... Rfb8 {[%clk 0:02:38.1]} 15. Rbd1 {[%clk 0:01:51.2]}
15... Nh5 {[%clk 0:02:14.1]} 16. Bh2 {[%clk 0:01:39.8]} 16... Bxc4 {[%clk
0:02:14.3]} 17. Bxc4 {[%clk 0:01:39.7]} 17... Qa5 {[%clk 0:02:15.2]} 18. Rc1
{[%clk 0:01:21]} 18... Qa3 {[%clk 0:02:14.3]} 19. Rfe1 {[%clk 0:01:06.3]} 19...
Rb2 {[%clk 0:02:12.9]} 20. Qd3 {[%clk 0:01:06.5]} 20... Rab8 {[%clk 0:01:58.9]}
21. e5 {[%clk 0:00:41.1]} 21... dxe5 {[%clk 0:01:56]} 22. Nxe5 {[%clk
0:00:19.9]} 22... Nxe5 {[%clk 0:01:56.1]} 23. Bxe5 {[%clk 0:00:20.8]} 23... Bxe5
{[%clk 0:01:56.7]} 24. Rxe5 {[%clk 0:00:21.2]} 24... Rxf2 {[%clk 0:01:56.9]} 25.
Kxf2 {[%clk 0:00:07.7]} 25... Qxc1 {[%clk 0:01:56.6]} 26. Rxe7 {[%clk
0:00:05.6]} 26... Rb2+ {[%clk 0:01:52.7]} 27. Re2 {[%clk 0:00:00.4]} 27... Nf4
{[%clk 0:01:52.8]} 0-1

[Event "Late-Titled-Tuesday-Blitz-May-14-2024"]
[Site "Chess.com"]
[Date "2024.05.14"]
[Round "2"]
[White "Statham_01"]
[Black "KaydenTroffChess"]
[Result "1-0"]
[WhiteElo "2622"]
[BlackElo "2870"]
[TimeControl "180+1"]
[EndTime "14:16:25 PDT"]
[Termination "Statham_01 won by resignation"]

1. e4 {[%clk 0:03:00.9]} 1... c5 {[%clk 0:03:00.2]} 2. a3 {[%clk 0:02:59.9]}
2... g6 {[%clk 0:03:00.2]} 3. Nf3 {[%clk 0:02:59.1]} 3... Bg7 {[%clk 0:03:00.4]}
4. c3 {[%clk 0:02:59.8]} 4... Nc6 {[%clk 0:02:58.6]} 5. d4 {[%clk 0:02:59.9]}
5... cxd4 {[%clk 0:02:58.3]} 6. cxd4 {[%clk 0:03:00.8]} 6... d5 {[%clk
0:02:59.1]} 7. exd5 {[%clk 0:03:00.3]} 7... Qxd5 {[%clk 0:02:59.2]} 8. Nc3
{[%clk 0:03:01.1]} 8... Qd8 {[%clk 0:02:57.6]} 9. d5 {[%clk 0:03:01.6]} 9... Nb8
{[%clk 0:02:57.9]} 10. Bc4 {[%clk 0:03:01]} 10... Nf6 {[%clk 0:02:58]} 11. O-O
{[%clk 0:03:01]} 11... O-O {[%clk 0:02:58.5]} 12. Re1 {[%clk 0:03:01.7]} 12...
Nbd7 {[%clk 0:02:58.6]} 13. Bg5 {[%clk 0:03:02]} 13... Nb6 {[%clk 0:02:58]} 14.
Ba2 {[%clk 0:03:02.2]} 14... Bf5 {[%clk 0:02:51.6]} 15. Qe2 {[%clk 0:03:01.7]}
15... Re8 {[%clk 0:02:44.8]} 16. Rad1 {[%clk 0:03:01.8]} 16... Qd6 {[%clk
0:02:44]} 17. Nb5 {[%clk 0:02:58.8]} 17... Qd7 {[%clk 0:02:43.5]} 18. Ne5 {[%clk
0:02:57.3]} 18... Qd8 {[%clk 0:02:36.1]} 19. Qf3 {[%clk 0:02:40.8]} 19... a6
{[%clk 0:02:30.3]} 20. Nd4 {[%clk 0:02:41.2]} 20... Nfd7 {[%clk 0:02:00]} 21.
Nxf7 {[%clk 0:02:37]} 21... Qc8 {[%clk 0:01:40.9]} 22. Nxf5 {[%clk 0:02:30.5]}
22... gxf5 {[%clk 0:01:40.6]} 23. d6 {[%clk 0:02:29.2]} 23... e6 {[%clk
0:01:36.6]} 24. Rxe6 {[%clk 0:02:27.7]} 24... Nc4 {[%clk 0:01:09]} 25. Rxe8+
{[%clk 0:02:16]} 25... Qxe8 {[%clk 0:01:07.6]} 26. Bxc4 {[%clk 0:02:15.9]} 26...
Rc8 {[%clk 0:01:06.4]} 27. Nh6+ {[%clk 0:02:11.7]} 27... Kh8 {[%clk 0:01:05]}
28. Nf7+ {[%clk 0:02:12]} 28... Kg8 {[%clk 0:01:04.8]} 29. Ba2 {[%clk
0:02:09.1]} 29... Rc5 {[%clk 0:01:02.3]} 30. h4 {[%clk 0:02:06.4]} 30... h6
{[%clk 0:00:47.9]} 31. Nxh6+ {[%clk 0:02:05.7]} 31... Kh7 {[%clk 0:00:47.6]} 32.
Bf7 {[%clk 0:02:03.6]} 32... Qe5 {[%clk 0:00:39.7]} 33. Qh5 {[%clk 0:02:02.7]}
33... Nf6 {[%clk 0:00:33.4]} 34. Bxf6 {[%clk 0:01:44.1]} 34... Qxf6 {[%clk
0:00:28]} 35. Ng8+ {[%clk 0:01:42.6]} 1-0

[Event "Late-Titled-Tuesday-Blitz-May-14-2024"]
[Site "Chess.com"]
[Date "2024.05.14"]
[Round "2"]
[White "Brown_Mamba24"]
[Black "Chessdude1987"]
[Result "1-0"]
[WhiteElo "2617"]
[BlackElo "2377"]
[TimeControl "180+1"]
[EndTime "14:16:28 PDT"]
[Termination "Brown_Mamba24 won on time"]

1. d4 {[%clk 0:03:00.9]} 1... e6 {[%clk 0:03:00.3]} 2. Nf3 {[%clk 0:03:00.8]}
2... f5 {[%clk 0:03:00.7]} 3. Bg5 {[%clk 0:02:57.2]} 3... Be7 {[%clk 0:02:59.3]}
4. h4 {[%clk 0:02:56.4]} 4... Nf6 {[%clk 0:02:54.3]} 5. Nbd2 {[%clk 0:02:56.2]}
5... d5 {[%clk 0:02:53.9]} 6. h5 {[%clk 0:02:52.8]} 6... h6 {[%clk 0:02:50.8]}
7. Bf4 {[%clk 0:02:51.3]} 7... Ne4 {[%clk 0:02:50.2]} 8. Ne5 {[%clk 0:02:47.5]}
8... Bg5 {[%clk 0:02:34.9]} 9. e3 {[%clk 0:02:36]} 9... Bxf4 {[%clk 0:02:20.8]}
10. exf4 {[%clk 0:02:36.9]} 10... O-O {[%clk 0:02:13.6]} 11. Ng6 {[%clk
0:02:36.5]} 11... Rf6 {[%clk 0:02:13.2]} 12. f3 {[%clk 0:02:33.7]} 12... Ng3
{[%clk 0:02:08.8]} 13. Rh3 {[%clk 0:02:33.6]} 13... Nxh5 {[%clk 0:02:02.8]} 14.
Rxh5 {[%clk 0:02:27]} 14... Rxg6 {[%clk 0:02:02.6]} 15. Qe2 {[%clk 0:02:22.6]}
15... c5 {[%clk 0:01:49.8]} 16. dxc5 {[%clk 0:02:21.3]} 16... Qc7 {[%clk
0:01:45.3]} 17. Qe3 {[%clk 0:02:13.6]} 17... Nd7 {[%clk 0:01:44.4]} 18. Nb3
{[%clk 0:02:13.1]} 18... b6 {[%clk 0:01:31.1]} 19. cxb6 {[%clk 0:02:07.2]} 19...
axb6 {[%clk 0:01:30.9]} 20. c3 {[%clk 0:01:58.3]} 20... Bb7 {[%clk 0:01:08.4]}
21. Nd4 {[%clk 0:01:56.2]} 21... e5 {[%clk 0:00:42.4]} 22. fxe5 {[%clk
0:01:55.2]} 22... Nxe5 {[%clk 0:00:40.1]} 23. Rxf5 {[%clk 0:01:50.3]} 23... Re8
{[%clk 0:00:39.6]} 24. O-O-O {[%clk 0:01:49.4]} 24... Bc6 {[%clk 0:00:31.6]} 25.
Nxc6 {[%clk 0:01:45.9]} 25... Rxc6 {[%clk 0:00:20.5]} 26. Bb5 {[%clk 0:01:45.4]}
26... Ree6 {[%clk 0:00:08.5]} 27. Bxc6 {[%clk 0:01:39.5]} 1-0

[Event "Late-Titled-Tuesday-Blitz-May-14-2024"]
[Site "Chess.com"]
[Date "2024.05.14"]
[Round "2"]
[White "AlejandroArias"]
[Black "Ykow"]
[Result "0-1"]
[WhiteElo "2345"]
[BlackElo "2547"]
[TimeControl "180+1"]
[EndTime "14:16:29 PDT"]
[Termination "Ykow won by resignation"]

1. e3 {[%clk 0:03:00.9]} 1... e5 {[%clk 0:02:59.6]} 2. d4 {[%clk 0:03:00.3]}
2... e4 {[%clk 0:02:58.2]} 3. c4 {[%clk 0:02:59.3]} 3... c6 {[%clk 0:02:57.1]}
4. Nc3 {[%clk 0:02:58.6]} 4... d5 {[%clk 0:02:56.9]} 5. Nge2 {[%clk 0:02:57.8]}
5... Nf6 {[%clk 0:02:56.2]} 6. Ng3 {[%clk 0:02:57.6]} 6... Bd6 {[%clk
0:02:55.5]} 7. Be2 {[%clk 0:02:56.8]} 7... O-O {[%clk 0:02:54.6]} 8. O-O {[%clk
0:02:56.6]} 8... Re8 {[%clk 0:02:46.1]} 9. Bd2 {[%clk 0:02:47.5]} 9... dxc4
{[%clk 0:02:44.4]} 10. Bxc4 {[%clk 0:02:46.3]} 10... b5 {[%clk 0:02:45.3]} 11.
Bb3 {[%clk 0:02:38.4]} 11... b4 {[%clk 0:02:37.4]} 12. Na4 {[%clk 0:02:37.6]}
12... Bb7 {[%clk 0:02:36.5]} 13. Rc1 {[%clk 0:02:31.9]} 13... Nbd7 {[%clk
0:02:36.2]} 14. Qc2 {[%clk 0:02:24.6]} 14... Nb6 {[%clk 0:02:31.6]} 15. Nc5
{[%clk 0:02:22.6]} 15... Bxc5 {[%clk 0:02:30.1]} 16. Qxc5 {[%clk 0:02:20.1]}
16... a5 {[%clk 0:02:28.1]} 17. Qg5 {[%clk 0:02:09.9]} 17... h6 {[%clk
0:02:25.6]} 18. Qh4 {[%clk 0:02:07.3]} 18... Nbd5 {[%clk 0:02:23.3]} 19. Bc2
{[%clk 0:01:59.2]} 19... Qe7 {[%clk 0:02:15.9]} 20. Bb1 {[%clk 0:01:53.6]} 20...
Qe6 {[%clk 0:02:13.5]} 21. f3 {[%clk 0:01:46.7]} 21... exf3 {[%clk 0:02:10.3]}
22. Rxf3 {[%clk 0:01:47.6]} 22... Qg4 {[%clk 0:02:09.1]} 23. Qxg4 {[%clk
0:01:36.7]} 23... Nxg4 {[%clk 0:02:10]} 24. e4 {[%clk 0:01:35.6]} 24... Nb6
{[%clk 0:02:08.8]} 25. b3 {[%clk 0:01:31]} 25... Rad8 {[%clk 0:02:07.8]} 26. Nf5
{[%clk 0:01:26.1]} 26... g6 {[%clk 0:02:00.5]} 27. Nxh6+ {[%clk 0:01:18]} 27...
Nxh6 {[%clk 0:01:59.1]} 28. Bxh6 {[%clk 0:01:18.9]} 28... Nc8 {[%clk 0:01:54.7]}
29. Be3 {[%clk 0:01:11.9]} 29... Nd6 {[%clk 0:01:53.5]} 30. e5 {[%clk
0:01:11.5]} 30... Nb5 {[%clk 0:01:53]} 31. Rf4 {[%clk 0:01:04.4]} 31... Nc3
{[%clk 0:01:51.1]} 32. Bd3 {[%clk 0:01:04.1]} 32... c5 {[%clk 0:01:50.9]} 33.
Bc4 {[%clk 0:01:00]} 33... Bd5 {[%clk 0:01:51]} 34. Bb5 {[%clk 0:00:50.1]} 34...
Nxb5 {[%clk 0:01:50.2]} 35. dxc5 {[%clk 0:00:50.3]} 35... Bc6 {[%clk 0:01:49.4]}
36. Rcf1 {[%clk 0:00:48.2]} 36... Rxe5 {[%clk 0:01:49]} 37. Bc1 {[%clk
0:00:45.7]} 37... f5 {[%clk 0:01:47.9]} 38. h4 {[%clk 0:00:40.6]} 38... Nc3
{[%clk 0:01:47.8]} 39. R4f2 {[%clk 0:00:38.4]} 39... Re2 {[%clk 0:01:46.7]} 40.
Bg5 {[%clk 0:00:35]} 40... Rd5 {[%clk 0:01:42.6]} 0-1

[Event "Late-Titled-Tuesday-Blitz-May-14-2024"]
[Site "Chess.com"]
[Date "2024.05.14"]
[Round "2"]
[White "Nf3c5"]
[Black "jaramsdal"]
[Result "1-0"]
[WhiteElo "2561"]
[BlackElo "2366"]
[TimeControl "180+1"]
[EndTime "14:16:31 PDT"]
[Termination "Nf3c5 won by resignation"]

1. d4 {[%clk 0:02:54.9]} 1... Nf6 {[%clk 0:00:51.3]} 2. Nc3 {[%clk 0:02:46.9]}
2... d5 {[%clk 0:00:50.4]} 3. Bf4 {[%clk 0:02:47]} 3... c5 {[%clk 0:00:49.5]} 4.
e3 {[%clk 0:02:44.1]} 4... e6 {[%clk 0:00:49.3]} 5. Nb5 {[%clk 0:02:44]} 5...
Na6 {[%clk 0:00:49.5]} 6. Nf3 {[%clk 0:02:39.9]} 6... c4 {[%clk 0:00:49.5]} 7.
a4 {[%clk 0:02:39.4]} 7... Be7 {[%clk 0:00:48.6]} 8. b3 {[%clk 0:02:31.7]} 8...
cxb3 {[%clk 0:00:40]} 9. c3 {[%clk 0:02:28.8]} 9... O-O {[%clk 0:00:38.6]} 10.
Qxb3 {[%clk 0:02:26.7]} 10... Bd7 {[%clk 0:00:37.3]} 11. Bd3 {[%clk 0:02:26]}
11... Rc8 {[%clk 0:00:36.5]} 12. O-O {[%clk 0:02:25.4]} 12... Qb6 {[%clk
0:00:35.2]} 13. Rfc1 {[%clk 0:02:24.3]} 13... Bxb5 {[%clk 0:00:32.4]} 14. axb5
{[%clk 0:02:15]} 14... Nb8 {[%clk 0:00:27.1]} 15. Qa4 {[%clk 0:02:13.6]} 15...
Ne4 {[%clk 0:00:21.7]} 16. Bxe4 {[%clk 0:02:07.7]} 16... dxe4 {[%clk 0:00:22.6]}
17. Nd2 {[%clk 0:02:08.3]} 17... f5 {[%clk 0:00:17.4]} 18. c4 {[%clk 0:02:07]}
18... a6 {[%clk 0:00:15.1]} 19. c5 {[%clk 0:01:55.1]} 19... Qxb5 {[%clk
0:00:14]} 20. Qxb5 {[%clk 0:01:55.3]} 20... axb5 {[%clk 0:00:14.9]} 21. Rab1
{[%clk 0:01:54.7]} 21... Nc6 {[%clk 0:00:13.2]} 22. Rxb5 {[%clk 0:01:55.2]}
22... e5 {[%clk 0:00:13.8]} 23. Bxe5 {[%clk 0:01:52.4]} 23... Rfd8 {[%clk
0:00:14.4]} 24. Nc4 {[%clk 0:01:51.4]} 24... Nxe5 {[%clk 0:00:13.4]} 25. Nxe5
{[%clk 0:01:52]} 25... Rd5 {[%clk 0:00:08.1]} 26. Rxb7 {[%clk 0:01:42.4]} 26...
Bxc5 {[%clk 0:00:07]} 27. Nd7 {[%clk 0:01:43]} 27... Rc6 {[%clk 0:00:02]} 28.
Nxc5 {[%clk 0:01:42]} 28... Rdxc5 {[%clk 0:00:02]} 1-0

[Event "Late-Titled-Tuesday-Blitz-May-14-2024"]
[Site "Chess.com"]
[Date "2024.05.14"]
[Round "2"]
[White "2346PL"]
[Black "Aygehovit1992"]
[Result "0-1"]
[WhiteElo "2579"]
[BlackElo "2852"]
[TimeControl "180+1"]
[EndTime "14:16:34 PDT"]
[Termination "Aygehovit1992 won by resignation"]

1. d4 {[%clk 0:03:00.9]} 1... Nf6 {[%clk 0:03:00.2]} 2. Bg5 {[%clk 0:03:00.8]}
2... d5 {[%clk 0:02:59.4]} 3. e3 {[%clk 0:03:00.5]} 3... c5 {[%clk 0:02:58.4]}
4. Nd2 {[%clk 0:02:54.8]} 4... Nc6 {[%clk 0:02:56.7]} 5. c3 {[%clk 0:02:54.7]}
5... Qb6 {[%clk 0:02:56.4]} 6. Qb3 {[%clk 0:02:54.3]} 6... c4 {[%clk 0:02:55.5]}
7. Qxb6 {[%clk 0:02:52]} 7... axb6 {[%clk 0:02:56.4]} 8. Bxf6 {[%clk 0:02:49.6]}
8... exf6 {[%clk 0:02:47.9]} 9. e4 {[%clk 0:02:50.5]} 9... dxe4 {[%clk
0:02:45.6]} 10. Bxc4 {[%clk 0:02:48.6]} 10... f5 {[%clk 0:02:44.4]} 11. Ne2
{[%clk 0:02:44]} 11... Bd6 {[%clk 0:02:35.7]} 12. O-O {[%clk 0:02:42.4]} 12...
O-O {[%clk 0:02:35.1]} 13. a3 {[%clk 0:02:38.6]} 13... g6 {[%clk 0:02:32.8]} 14.
Rae1 {[%clk 0:02:29.5]} 14... Re8 {[%clk 0:02:30.5]} 15. Ng3 {[%clk 0:02:24.5]}
15... Bd7 {[%clk 0:02:27.2]} 16. Re2 {[%clk 0:02:02.1]} 16... Na5 {[%clk
0:02:26.7]} 17. Ba2 {[%clk 0:02:01.6]} 17... Rac8 {[%clk 0:02:19.5]} 18. c4
{[%clk 0:01:57.4]} 18... Nc6 {[%clk 0:02:08]} 19. Nb3 {[%clk 0:01:45.7]} 19...
Bf8 {[%clk 0:02:07.4]} 20. Rd1 {[%clk 0:01:40.9]} 20... Bg7 {[%clk 0:02:07.6]}
21. Nf1 {[%clk 0:01:39.7]} 21... Kf8 {[%clk 0:02:03.3]} 22. f3 {[%clk
0:01:35.1]} 22... exf3 {[%clk 0:01:59.4]} 23. Rxe8+ {[%clk 0:01:35.1]} 23...
Rxe8 {[%clk 0:02:00.3]} 24. gxf3 {[%clk 0:01:35.6]} 24... Re2 {[%clk 0:01:58.7]}
25. Rd2 {[%clk 0:00:42.2]} 25... Rxd2 {[%clk 0:01:57.8]} 26. Nfxd2 {[%clk
0:00:42.5]} 26... Nxd4 {[%clk 0:01:58.1]} 27. Nc1 {[%clk 0:00:38.7]} 27... Bh6
{[%clk 0:01:45]} 28. Ncb3 {[%clk 0:00:38.8]} 28... Nxb3 {[%clk 0:01:41.3]} 29.
Nxb3 {[%clk 0:00:38.8]} 29... Bg7 {[%clk 0:01:42]} 30. c5 {[%clk 0:00:36.8]}
30... Bxb2 {[%clk 0:01:41.7]} 31. cxb6 {[%clk 0:00:36.5]} 31... Bxa3 {[%clk
0:01:41.2]} 32. Kg2 {[%clk 0:00:36.5]} 32... Be6 {[%clk 0:01:40.3]} 33. Na5
{[%clk 0:00:30.6]} 33... Bxa2 {[%clk 0:01:38.9]} 34. Nxb7 {[%clk 0:00:31.5]}
34... Bd5 {[%clk 0:01:38.9]} 35. Nd8 {[%clk 0:00:27.3]} 35... Bd6 {[%clk
0:01:35.2]} 36. b7 {[%clk 0:00:27.1]} 36... Bb8 {[%clk 0:01:32.1]} 0-1

[Event "Late-Titled-Tuesday-Blitz-May-14-2024"]
[Site "Chess.com"]
[Date "2024.05.14"]
[Round "2"]
[White "Evgeny81"]
[Black "banane_verte"]
[Result "1-0"]
[WhiteElo "2771"]
[BlackElo "2548"]
[TimeControl "180+1"]
[EndTime "14:16:34 PDT"]
[Termination "Evgeny81 won by resignation"]

1. Nf3 {[%clk 0:02:57.2]} 1... g6 {[%clk 0:02:53.4]} 2. c4 {[%clk 0:02:57.4]}
2... Bg7 {[%clk 0:02:53.2]} 3. d4 {[%clk 0:02:57.6]} 3... b6 {[%clk 0:02:53.2]}
4. Nc3 {[%clk 0:02:57.6]} 4... Bb7 {[%clk 0:02:53.9]} 5. e4 {[%clk 0:02:57.8]}
5... e6 {[%clk 0:02:52.2]} 6. Be3 {[%clk 0:02:55.2]} 6... d6 {[%clk 0:02:52.1]}
7. Bd3 {[%clk 0:02:53.3]} 7... h6 {[%clk 0:02:50.5]} 8. O-O {[%clk 0:02:52.2]}
8... Ne7 {[%clk 0:02:49.5]} 9. d5 {[%clk 0:02:51.3]} 9... Nd7 {[%clk 0:02:45.8]}
10. dxe6 {[%clk 0:02:45.2]} 10... fxe6 {[%clk 0:02:46.7]} 11. Qc2 {[%clk
0:02:42.6]} 11... Nc6 {[%clk 0:02:36.9]} 12. e5 {[%clk 0:02:34.4]} 12... O-O
{[%clk 0:02:36.7]} 13. exd6 {[%clk 0:02:31.2]} 13... cxd6 {[%clk 0:02:32.9]} 14.
Bxg6 {[%clk 0:02:18.1]} 14... Nce5 {[%clk 0:02:32]} 15. Nxe5 {[%clk 0:02:15.8]}
15... Nxe5 {[%clk 0:02:32.9]} 16. Be4 {[%clk 0:02:13.1]} 16... d5 {[%clk
0:02:33.1]} 17. cxd5 {[%clk 0:02:11.5]} 17... exd5 {[%clk 0:02:31.7]} 18. Rad1
{[%clk 0:02:09.8]} 18... Qh4 {[%clk 0:02:31.2]} 19. Bxd5+ {[%clk 0:01:52.7]}
19... Bxd5 {[%clk 0:02:30]} 20. Nxd5 {[%clk 0:01:52.6]} 20... Rac8 {[%clk
0:02:16.7]} 21. Qb3 {[%clk 0:01:43.6]} 21... Kh8 {[%clk 0:02:13.8]} 22. h3
{[%clk 0:01:41.8]} 22... Nf3+ {[%clk 0:02:04.2]} 23. gxf3 {[%clk 0:01:33.5]}
23... Qxh3 {[%clk 0:02:04.6]} 24. Nf4 {[%clk 0:01:16.5]} 24... Qxf3 {[%clk
0:01:40.4]} 25. Ng6+ {[%clk 0:01:03.2]} 25... Kh7 {[%clk 0:01:40.2]} 26. Nxf8+
{[%clk 0:01:03.8]} 26... Rxf8 {[%clk 0:01:38.2]} 27. Qd5 {[%clk 0:01:01.1]}
27... Qf6 {[%clk 0:01:28.8]} 28. Qe4+ {[%clk 0:00:47.4]} 28... Kh8 {[%clk
0:01:26.6]} 29. Bd4 {[%clk 0:00:47.6]} 29... Qg5+ {[%clk 0:01:24.8]} 30. Qg2
{[%clk 0:00:47.8]} 1-0

[Event "Late-Titled-Tuesday-Blitz-May-14-2024"]
[Site "Chess.com"]
[Date "2024.05.14"]
[Round "2"]
[White "GMAneta"]
[Black "WCM-Mexicana"]
[Result "0-1"]
[WhiteElo "2529"]
[BlackElo "2373"]
[TimeControl "180+1"]
[EndTime "14:16:41 PDT"]
[Termination "WCM-Mexicana won by resignation"]

1. d4 {[%clk 0:03:00.6]} 1... Nf6 {[%clk 0:02:58.3]} 2. Nf3 {[%clk 0:02:59.2]}
2... g6 {[%clk 0:02:57.4]} 3. c4 {[%clk 0:02:58.1]} 3... Bg7 {[%clk 0:02:55.1]}
4. g3 {[%clk 0:02:57.7]} 4... O-O {[%clk 0:02:53.1]} 5. Bg2 {[%clk 0:02:57.4]}
5... d6 {[%clk 0:02:52.9]} 6. O-O {[%clk 0:02:57.3]} 6... c5 {[%clk 0:02:52.5]}
7. Nc3 {[%clk 0:02:56.8]} 7... a6 {[%clk 0:02:46.6]} 8. dxc5 {[%clk 0:02:54.7]}
8... dxc5 {[%clk 0:02:45.4]} 9. Be3 {[%clk 0:02:55]} 9... b6 {[%clk 0:02:41.2]}
10. Ne5 {[%clk 0:02:52.6]} 10... Ra7 {[%clk 0:02:40.7]} 11. Qb3 {[%clk
0:02:51.7]} 11... Qc7 {[%clk 0:02:37.9]} 12. Bf4 {[%clk 0:02:49]} 12... Nh5
{[%clk 0:02:28.9]} 13. Nd5 {[%clk 0:02:47.4]} 13... Qd8 {[%clk 0:02:23.6]} 14.
Rad1 {[%clk 0:02:36.8]} 14... Nxf4 {[%clk 0:02:20.3]} 15. gxf4 {[%clk
0:02:35.2]} 15... Bxe5 {[%clk 0:02:12.3]} 16. fxe5 {[%clk 0:02:31.4]} 16... Nd7
{[%clk 0:02:10.8]} 17. e6 {[%clk 0:02:29.9]} 17... fxe6 {[%clk 0:02:09.7]} 18.
Nf4 {[%clk 0:02:30]} 18... Rxf4 {[%clk 0:02:03.9]} 19. Qe3 {[%clk 0:02:28.6]}
19... e5 {[%clk 0:01:55.9]} 20. Qxe5 {[%clk 0:02:26.3]} 20... Nxe5 {[%clk
0:01:52.8]} 21. Rxd8+ {[%clk 0:02:25.4]} 21... Rf8 {[%clk 0:01:53.4]} 22. Rfd1
{[%clk 0:02:23.1]} 22... Rd7 {[%clk 0:01:48.3]} 23. R1xd7 {[%clk 0:02:18.7]}
23... Bxd7 {[%clk 0:01:43.7]} 24. Bd5+ {[%clk 0:02:14.7]} 24... e6 {[%clk
0:01:42.4]} 25. Rxd7 {[%clk 0:02:14.8]} 25... Nxd7 {[%clk 0:01:07.8]} 26. Bxe6+
{[%clk 0:02:13]} 26... Rf7 {[%clk 0:01:08.3]} 27. f4 {[%clk 0:02:02.8]} 27...
Kf8 {[%clk 0:00:53.1]} 28. Bxf7 {[%clk 0:02:02.1]} 28... Kxf7 {[%clk 0:00:54]}
29. Kf2 {[%clk 0:02:02.3]} 29... b5 {[%clk 0:00:51.4]} 30. cxb5 {[%clk
0:01:59.6]} 30... axb5 {[%clk 0:00:52.3]} 31. Ke3 {[%clk 0:02:00.1]} 31... Ke6
{[%clk 0:00:51.9]} 32. Ke4 {[%clk 0:01:58.8]} 32... Nf6+ {[%clk 0:00:51.9]} 33.
Kf3 {[%clk 0:01:58.5]} 33... Kd5 {[%clk 0:00:52.2]} 34. b3 {[%clk 0:01:55.1]}
34... Kd4 {[%clk 0:00:49.6]} 35. a4 {[%clk 0:01:53.7]} 35... bxa4 {[%clk
0:00:49.9]} 36. bxa4 {[%clk 0:01:54]} 36... c4 {[%clk 0:00:49.8]} 37. a5 {[%clk
0:01:54.3]} 37... c3 {[%clk 0:00:45]} 38. a6 {[%clk 0:01:53.1]} 38... Nd7 {[%clk
0:00:34.9]} 39. a7 {[%clk 0:01:49.9]} 39... Nb6 {[%clk 0:00:35]} 40. e4 {[%clk
0:01:50.1]} 40... c2 {[%clk 0:00:34.5]} 41. e5 {[%clk 0:01:50.6]} 41... c1=Q
{[%clk 0:00:34.9]} 42. e6 {[%clk 0:01:50.2]} 42... Qc6+ {[%clk 0:00:34.9]} 43.
Kg3 {[%clk 0:01:50.1]} 43... Qxe6 {[%clk 0:00:35.5]} 0-1

[Event "Late-Titled-Tuesday-Blitz-May-14-2024"]
[Site "Chess.com"]
[Date "2024.05.14"]
[Round "2"]
[White "lamomiajunior"]
[Black "VacheH009"]
[Result "1-0"]
[WhiteElo "2776"]
[BlackElo "2548"]
[TimeControl "180+1"]
[EndTime "14:16:44 PDT"]
[Termination "lamomiajunior won by resignation"]

1. d4 {[%clk 0:03:00.9]} 1... Nf6 {[%clk 0:02:57.1]} 2. Nc3 {[%clk 0:03:01]}
2... d5 {[%clk 0:02:56.7]} 3. Bf4 {[%clk 0:03:01.4]} 3... a6 {[%clk 0:02:56.3]}
4. e3 {[%clk 0:03:01.5]} 4... e6 {[%clk 0:02:53.4]} 5. g4 {[%clk 0:03:01]} 5...
Bd6 {[%clk 0:02:52]} 6. g5 {[%clk 0:03:00.3]} 6... Nfd7 {[%clk 0:02:49.6]} 7.
Qf3 {[%clk 0:02:59]} 7... Bxf4 {[%clk 0:02:24.8]} 8. Qxf4 {[%clk 0:02:58.7]}
8... h6 {[%clk 0:02:23.9]} 9. gxh6 {[%clk 0:02:54.6]} 9... Rxh6 {[%clk
0:02:23.8]} 10. O-O-O {[%clk 0:02:54.3]} 10... Nc6 {[%clk 0:02:18.6]} 11. e4
{[%clk 0:02:50.3]} 11... Ne7 {[%clk 0:02:14.3]} 12. Nf3 {[%clk 0:02:48.2]} 12...
Nf6 {[%clk 0:02:06.3]} 13. Rg1 {[%clk 0:02:39.2]} 13... Ng6 {[%clk 0:01:52.1]}
14. Qe3 {[%clk 0:02:38.4]} 14... dxe4 {[%clk 0:01:51.2]} 15. Nxe4 {[%clk
0:02:39.3]} 15... Nxe4 {[%clk 0:01:49.9]} 16. Qxe4 {[%clk 0:02:40.2]} 16... Qd5
{[%clk 0:01:46.4]} 17. Qxd5 {[%clk 0:02:39.4]} 17... exd5 {[%clk 0:01:47.3]} 18.
Bd3 {[%clk 0:02:39.6]} 18... Kf8 {[%clk 0:01:11.9]} 19. Rde1 {[%clk 0:02:22.8]}
19... Nh4 {[%clk 0:00:58.3]} 20. Ne5 {[%clk 0:01:33.4]} 20... f6 {[%clk
0:00:55.1]} 21. Ng6+ {[%clk 0:01:31.8]} 21... Nxg6 {[%clk 0:00:52.6]} 22. Bxg6
{[%clk 0:01:30]} 22... Bd7 {[%clk 0:00:52.5]} 23. Rg2 {[%clk 0:01:26.8]} 23...
Bh3 {[%clk 0:00:39.1]} 24. Rg3 {[%clk 0:01:24.2]} 24... Bd7 {[%clk 0:00:39.7]}
25. f4 {[%clk 0:01:22.6]} 25... Rxh2 {[%clk 0:00:37.1]} 26. Rge3 {[%clk
0:01:22.8]} 26... Rd8 {[%clk 0:00:16.5]} 27. Re7 {[%clk 0:01:20.2]} 27... Kg8
{[%clk 0:00:13.3]} 28. Rxd7 {[%clk 0:01:18.8]} 1-0